fUSD/lending_fUSD_20251109
["ID","MTS","AMOUNT","RATE_DAILY","PERIOD"]
[393490277,1762714968017,690.42,0.00039262,120]
[393490278,1762714968064,690.42,0.00039262,120]
[393490279,1762714968116,690.42,0.00039262,120]
[393490280,1762714968165,690.42,0.00039262,120]
[393490281,1762714968215,690.42,0.00039262,120]
[393490282,1762714968267,690.4994579,0.00039262,120]
[393490283,1762714968427,500.0,0.00039262,120]
[393490284,1762714968472,500.0,0.00039262,120]
[393490285,1762714968532,500.0,0.00039262,120]
[393490286,1762714968577,500.0,0.00039262,120]
[393490287,1762714968624,543.48879653,0.00039262,120]
[393490288,1762714968935,573.79222047,0.00039262,120]
[393490289,1762714969024,500.0,0.00039262,120]
[393490290,1762714969152,500.0,0.00039262,120]
[393490291,1762714969230,500.0,0.00039262,120]
[393490292,1762714969280,500.0,0.00039262,120]
[393490293,1762714969363,500.0,0.00039262,120]
[393490294,1762714969406,500.0,0.00039262,120]
[393490295,1762714969457,297.66854477,0.00039262,120]
[393490296,1762714969500,500.0,0.00039262,120]
[393490297,1762714969578,500.0,0.00039262,120]
[393490298,1762714969626,500.0,0.00039262,120]
[393490299,1762714969671,180.57008751,0.00039262,120]
[393490300,1762714969883,500.0,0.00039262,120]
[393490301,1762714969927,500.0,0.00039262,120]
[393490302,1762714969980,500.0,0.00039262,120]
[393490303,1762714970034,500.0,0.00039262,120]
[393490304,1762714970075,500.0,0.00039262,120]
[393490305,1762714970125,444.58658058,0.00039262,120]
[393490306,1762714970203,497.94993934,0.00039262,120]
[393490307,1762714970686,500.0,0.00039262,120]
[393490308,1762714970733,500.0,0.00039262,120]
[393490309,1762714970788,500.0,0.00039262,120]
[393490310,1762714970838,500.0,0.00039262,120]
[393490311,1762714970886,500.0,0.00039262,120]
[393490312,1762714970933,500.0,0.00039262,120]
[393490313,1762714970978,500.0,0.00039262,120]
[393490314,1762714971045,500.0,0.00039262,120]
[393490315,1762714971092,500.0,0.00039262,120]
[393490316,1762714971138,500.0,0.00039262,120]
[393490317,1762714971182,500.0,0.00039262,120]
[393490318,1762714971225,500.0,0.00039262,120]
[393490319,1762714971269,500.0,0.00039262,120]
[393490320,1762714971312,500.0,0.00039262,120]
[393490321,1762714971356,500.0,0.00039262,120]
[393490322,1762714971397,500.0,0.00039262,120]
[393490323,1762714971439,194.64711593,0.00039262,120]
[393490324,1762714971670,500.0,0.00039262,120]
[393490325,1762714971717,500.0,0.00039262,120]
[393490326,1762714971761,500.0,0.00039262,120]
[393490327,1762714971808,500.0,0.00039262,120]
[393490328,1762714971851,500.0,0.00039262,120]
[393490329,1762714971892,500.0,0.00039262,120]
[393490330,1762714971935,500.0,0.00039262,120]
[393490331,1762714971977,500.0,0.00039262,120]
[393490332,1762714972019,500.0,0.00039262,120]
[393490333,1762714972060,500.0,0.00039262,120]
[393490334,1762714972102,500.0,0.00039262,120]
[393490335,1762714972144,500.0,0.00039262,120]
[393490336,1762714972185,500.0,0.00039262,120]
[393490337,1762714972226,500.0,0.00039262,120]
[393490338,1762714972296,500.0,0.00039262,120]
[393490339,1762714972339,500.0,0.00039262,120]
[393490340,1762714972387,500.0,0.00039262,120]
[393490341,1762714972429,500.0,0.00039262,120]
[393490342,1762714972471,432.25629733,0.00039262,120]
[393490343,1762714972824,616.36155849,0.00039262,120]
[393490344,1762714972870,500.0,0.00039262,120]
[393490345,1762714972915,500.0,0.00039262,120]
[393490346,1762714972959,500.0,0.00039262,120]
[393490347,1762714973003,342.74527493,0.00039262,120]
[393490348,1762714973146,585.01803288,0.00039262,120]
[393490349,1762714973216,500.0,0.00039262,120]
[393490350,1762714973264,500.0,0.00039262,120]
[393490351,1762714973313,500.0,0.00039262,120]
[393490352,1762714973358,500.0,0.00039262,120]
[393490353,1762714973403,500.0,0.00039262,120]
[393490354,1762714973450,500.0,0.00039262,120]
[393490355,1762714973498,500.0,0.00039262,120]
[393490356,1762714973549,500.0,0.00039262,120]
[393490357,1762714973599,500.0,0.00039262,120]
[393490358,1762714973650,500.0,0.00039262,120]
[393490359,1762714973759,500.0,0.00039262,120]
[393490362,1762714973850,416.63864783,0.00039262,120]
[393490364,1762714973899,500.0,0.00039262,120]
[393490367,1762714973948,500.0,0.00039262,120]
[393490369,1762714973996,500.0,0.00039262,120]
[393490370,1762714974044,500.0,0.00039262,120]
[393490372,1762714974091,500.0,0.00039262,120]
[393490373,1762714974142,466.01289234,0.00039262,120]
[393490374,1762714974424,500.0,0.00039262,120]
[393490375,1762714974472,500.0,0.00039262,120]
[393490376,1762714974522,500.0,0.00039262,120]
[393490377,1762714974568,500.0,0.00039262,120]
[393490378,1762714974616,500.0,0.00039262,120]
[393490379,1762714974669,500.0,0.00039262,120]
[393490380,1762714974716,500.0,0.00039262,120]
[393490381,1762714974765,500.0,0.00039262,120]
[393490382,1762714974811,500.0,0.00039262,120]
[393490383,1762714974859,500.0,0.00039262,120]
[393490384,1762714974915,500.0,0.00039262,120]
[393490385,1762714974960,500.0,0.00039262,120]
[393490386,1762714975007,500.0,0.00039262,120]
[393490387,1762714975054,500.0,0.00039262,120]
[393490388,1762714975104,500.0,0.00039262,120]
[393490389,1762714975152,500.0,0.00039262,120]
[393490390,1762714975199,500.0,0.00039262,120]
[393490391,1762714975328,500.0,0.00039262,120]
[393490392,1762714975380,500.0,0.00039262,120]
[393490393,1762714975428,500.0,0.00039262,120]
[393490394,1762714975477,500.0,0.00039262,120]
[393490395,1762714975528,500.0,0.00039262,120]
[393490396,1762714975575,500.0,0.00039262,120]
[393490397,1762714975622,260.63367481,0.00039262,120]
[393490398,1762714975712,570.26923571,0.00039262,120]
[393490399,1762714975759,646.64763745,0.00039262,120]
[393490400,1762714975982,500.0,0.00039262,120]
[393490401,1762714976046,500.0,0.00039262,120]
[393490402,1762714976096,500.0,0.00039262,120]
[393490405,1762714997182,1449.00365374,0.00039262,120]
[393490406,1762715006264,514.24885224,0.00039262,120]
[393490408,1762715021058,955.93294525,0.00039262,120]
[393490410,1762715035239,590.97,0.00039262,60]
[393490411,1762715035520,590.97,0.00039262,60]
[393490412,1762715035758,590.97,0.00039262,60]
[393490413,1762715035982,590.97,0.00039262,60]
[393490414,1762715036458,590.97,0.00039262,60]
[393490415,1762715036504,590.97,0.00039262,60]
[393490416,1762715036719,590.97,0.00039262,60]
[393490417,1762715036977,590.97,0.00039262,60]
[393490418,1762715037210,590.97,0.00039262,60]
[393490419,1762715037442,590.97,0.00039262,60]
[393490420,1762715037703,590.97,0.00039262,60]
[393490421,1762715037938,590.97,0.00039262,60]
[393490422,1762715038167,590.97,0.00039262,60]
[393490423,1762715038416,590.97,0.00039262,60]
[393490424,1762715038783,590.97,0.00039262,60]
[393490425,1762715038925,590.97,0.00039262,60]
[393490426,1762715039189,590.97,0.00039262,60]
[393490427,1762715039429,590.97,0.00039262,60]
[393490428,1762715039663,590.97,0.00039262,60]
[393490429,1762715039893,590.97,0.00039262,60]
[393490430,1762715040179,590.97,0.00039262,60]
[393490431,1762715040462,590.97,0.00039262,60]
[393490432,1762715040700,590.97,0.00039262,60]
[393490433,1762715040962,591.11093201,0.00039262,60]
[393490434,1762715070409,637.8467096,0.00039262,120]
[393490435,1762715073904,500.0,0.00039262,120]
[393490436,1762715074138,188.79498335,0.00039262,120]
[393490438,1762715089089,500.0,0.00039262,120]
[393490439,1762715089667,631.47964611,0.00039262,120]
[393490440,1762715098855,500.0,0.00039262,120]
[393490441,1762715099095,500.0,0.00039262,120]
[393490442,1762715099376,284.8629697,0.00039262,120]
[393490448,1762715119075,547.9542356,0.00039262,120]
[393490449,1762715124331,500.0,0.00039262,120]
[393490450,1762715124487,500.0,0.00039262,120]
[393490451,1762715124722,500.0,0.00039262,120]
[393490452,1762715124948,500.0,0.00039262,120]
[393490453,1762715125191,500.0,0.00039262,120]
[393490454,1762715125441,500.0,0.00039262,120]
[393490455,1762715125694,500.0,0.00039262,120]
[393490456,1762715125942,500.0,0.00039262,120]
[393490457,1762715126187,500.0,0.00039262,120]
[393490458,1762715126410,500.0,0.00039262,120]
[393490459,1762715126662,551.47942033,0.00039262,120]
[393490460,1762715148057,464.39307679,0.00039262,120]
[393490461,1762715160691,500.0,0.00039262,120]
[393490462,1762715161270,500.0,0.00039262,120]
[393490463,1762715161779,500.0,0.00039262,120]
[393490464,1762715162024,500.0,0.00039262,120]
[393490465,1762715162260,500.0,0.00039262,120]
[393490466,1762715162492,500.0,0.00039262,120]
[393490467,1762715162730,500.0,0.00039262,120]
[393490468,1762715162982,500.0,0.00039262,120]
[393490469,1762715163223,500.0,0.00039262,120]
[393490470,1762715163552,644.17762872,0.00039262,120]
[393490471,1762715169062,500.0,0.00039262,120]
[393490472,1762715169313,500.0,0.00039262,120]
[393490473,1762715169561,500.0,0.00039262,120]
[393490474,1762715169807,500.0,0.00039262,120]
[393490475,1762715170069,343.83582811,0.00039262,120]
[393490476,1762715177002,500.0,0.00039262,120]
[393490477,1762715177139,500.0,0.00039262,120]
[393490478,1762715177368,500.0,0.00039262,120]
[393490479,1762715177609,500.0,0.00039262,120]
[393490480,1762715177872,500.0,0.00039262,120]
[393490481,1762715178097,500.0,0.00039262,120]
[393490482,1762715178334,500.0,0.00039262,120]
[393490483,1762715178567,500.0,0.00039262,120]
[393490484,1762715178794,500.0,0.00039262,120]
[393490485,1762715179031,500.0,0.00039262,120]
[393490486,1762715179267,427.25228216,0.00039262,120]
[393490487,1762715191826,500.0,0.00039262,120]
[393490488,1762715192063,500.0,0.00039262,120]
[393490489,1762715192296,500.0,0.00039262,120]
[393490490,1762715192587,500.0,0.00039262,120]
[393490491,1762715192839,500.0,0.00039262,120]
[393490492,1762715193125,500.0,0.00039262,120]
[393490493,1762715193368,500.0,0.00039262,120]
[393490494,1762715194284,378.86454566,0.00039262,120]
[393490504,1762715227710,151.0,0.00039262,120]
[393490505,1762715228295,151.0,0.00039262,120]
[393490506,1762715230657,250.0,0.00039262,120]
[393490507,1762715231277,250.0,0.00039262,120]
[393490508,1762715233326,500.0,0.00039262,120]
[393490509,1762715233717,500.0,0.00039262,120]
[393490510,1762715234001,500.0,0.00039262,120]
[393490511,1762715234242,500.0,0.00039262,120]
[393490512,1762715234484,500.0,0.00039262,120]
[393490513,1762715234729,500.0,0.00039262,120]
[393490514,1762715234981,500.0,0.00039262,120]
[393490515,1762715235351,500.0,0.00039262,120]
[393490516,1762715235590,500.0,0.00039262,120]
[393490517,1762715235837,500.0,0.00039262,120]
[393490518,1762715236079,500.0,0.00039262,120]
[393490519,1762715236317,500.0,0.00039262,120]
[393490520,1762715236871,476.82337471,0.00039262,120]
[393490521,1762715236925,398.37277337,0.00039262,120]
[393490522,1762715255467,539.75228076,0.00039262,120]
[393490528,1762715293422,500.0,0.00039262,120]
[393490529,1762715293694,500.0,0.00039262,120]
[393490530,1762715293953,500.0,0.00039262,120]
[393490531,1762715294238,500.0,0.00039262,120]
[393490532,1762715294475,500.0,0.00039262,120]
[393490533,1762715294753,500.0,0.00039262,120]
[393490534,1762715295012,500.0,0.00039262,120]
[393490535,1762715295265,500.0,0.00039262,120]
[393490536,1762715295523,500.0,0.00039262,120]
[393490537,1762715295772,500.0,0.00039262,120]
[393490538,1762715296041,500.0,0.00039262,120]
[393490539,1762715296291,500.0,0.00039262,120]
[393490540,1762715296537,500.0,0.00039262,120]
[393490541,1762715296770,500.0,0.00039262,120]
[393490542,1762715297013,500.0,0.00039262,120]
[393490543,1762715297269,500.0,0.00039262,120]
[393490544,1762715297507,500.0,0.00039262,120]
[393490545,1762715297739,500.0,0.00039262,120]
[393490546,1762715298079,264.52570685,0.00039262,120]
[393490547,1762715336410,300.0,0.00039262,120]
[393490550,1762715336638,300.0,0.00039262,120]
[393490551,1762715336870,300.0,0.00039262,120]
[393490552,1762715337095,334.33072796,0.00039262,120]
[393490553,1762715343600,581.6129047,0.00039262,120]
[393490554,1762715374142,-561.0,0.00025008,2]
[393490555,1762715374166,-768.0,0.00025008,2]
[393490556,1762715374187,-710.0,0.0002537,2]
[393490557,1762715374209,-516.947,0.00025371,2]
[393490558,1762715374234,-578.948,0.00025371,2]
[393490559,1762715374254,-820.0,0.00025371,2]
[393490560,1762715374279,-559.0,0.00025371,2]
[393490561,1762715374297,-524.189254,0.00025371,2]
[393490580,1762715431611,-257.30774304,0.00025664,2]
[393490586,1762715431769,-290.90400003,0.00025664,2]
[393490587,1762715431824,-831.31657168,0.00025664,2]
[393490588,1762715431834,-1379.52831475,0.00025995,2]
[393490589,1762715431843,-217.22277107,0.00026111,2]
[393490590,1762715431853,-1114.43234247,0.00026119,2]
[393490591,1762715431984,-265.0959723,0.00026119,2]
[393490593,1762715431994,-318.0740377,0.00026134,2]
[393490595,1762715432006,-655.679994,0.00026134,2]
[393490598,1762715436253,500.0,0.00039262,120]
[393490599,1762715436694,468.76770532,0.00039262,120]
[393490601,1762715437631,-1269.06864682,0.0002462,2]
[393490602,1762715437642,-287.382,0.00025611,2]
[393490603,1762715437652,-4551.2859683,0.00026134,2]
[393490604,1762715437663,-1000.0,0.00026236,2]
[393490605,1762715437674,-1000.0,0.00026236,2]
[393490606,1762715437683,-309.5644,0.00026236,2]
[393490607,1762715437693,-978.64743413,0.00026238,2]
[393490608,1762715437704,-168.41613634,0.00026238,2]
[393490609,1762715437713,-824.66173711,0.00026238,2]
[393490610,1762715437723,-500.0,0.00026325,2]
[393490611,1762715437733,-500.0,0.00026325,2]
[393490612,1762715437742,-165.42115815,0.00026325,2]
[393490613,1762715437751,-36909.31185231,0.00026326,3]
[393490614,1762715437763,-533.16506907,0.00026326,3]
[393490615,1762715437774,-372.9392026,0.00026326,3]
[393490616,1762715437785,-93.59226402,0.00026326,3]
[393490618,1762715437795,-470.3562645,0.00026328,3]
[393490620,1762715437807,-1334.83461112,0.00026328,3]
[393490622,1762715437817,-215.59555771,0.00026335,2]
[393490624,1762715437826,-58519.39550315,0.00026336,2]
[393490626,1762715437837,-1983.14308496,0.00026336,2]
[393490628,1762715437849,-1075.2,0.00026336,2]
[393490630,1762715437861,-597.57437407,0.00026336,2]
[393490632,1762715437873,-2619.1736062,0.00026336,2]
[393490643,1762715439599,-24463.95449009,0.00026336,2]
[393490644,1762715439721,-1801.47668218,0.00026336,2]
[393490645,1762715439733,-2242.25045105,0.00026336,2]
[393490646,1762715439749,-476.78920421,0.00026336,2]
[393490647,1762715439761,-2587.85,0.00026336,2]
[393490648,1762715439773,-1045.0,0.00026336,2]
[393490649,1762715439785,-2142.0,0.00026336,2]
[393490650,1762715439796,-812.23000005,0.00026336,2]
[393490651,1762715439808,-2532.2076907,0.00026336,2]
[393490652,1762715439820,-5684.58366549,0.00026336,2]
[393490653,1762715439832,-459.4095232,0.00026336,2]
[393490654,1762715439920,-64945.54760402,0.00026336,2]
[393490655,1762715439932,-1085.9413338,0.00026336,2]
[393490656,1762715439945,-7603.82686247,0.00026336,2]
[393490691,1762715444668,-1191.7789296,0.00026336,2]
[393490692,1762715444680,-627.0,0.00026336,2]
[393490693,1762715444869,-1264.82357846,0.00026336,2]
[393490694,1762715444881,-976.96006757,0.00026336,2]
[393490695,1762715444924,-2210.079186,0.00026336,2]
[393490696,1762715444936,-1038.92680987,0.00026336,2]
[393490697,1762715444948,-230012.87735286,0.00026336,2]
[393490698,1762715444957,-1061.9293954,0.00026338,2]
[393490699,1762715444967,-5917.5978945,0.00026338,2]
[393490700,1762715444977,-200.0,0.00026344,2]
[393490702,1762715444986,-500.0,0.00026373,2]
[393490703,1762715444996,-500.0,0.00026373,2]
[393490704,1762715445011,-1805.19087562,0.00026437,3]
[393490705,1762715445021,-800.0,0.00026447,10]
[393490706,1762715445030,-800.0,0.00026447,10]
[393490707,1762715445040,-800.0,0.00026447,10]
[393490708,1762715445050,-800.0,0.00026447,10]
[393490709,1762715445068,-800.0,0.00026447,10]
[393490710,1762715445078,-800.0,0.00026447,10]
[393490711,1762715445088,-800.0,0.00026447,10]
[393490712,1762715445098,-800.0,0.00026447,10]
[393490713,1762715445107,-800.0,0.00026447,10]
[393490714,1762715445117,-800.0,0.00026447,10]
[393490715,1762715445128,-619.15,0.00026676,2]
[393490716,1762715445138,-1805.19087562,0.00026782,3]
[393490719,1762715445148,-3061.69,0.00026791,2]
[393490721,1762715445157,-3610.38175124,0.00027252,3]
[393490722,1762715445168,-8464.82,0.00027262,2]
[393490723,1762715445177,-250.0,0.00027293,2]
[393490724,1762715445187,-1258.89,0.00027655,2]
[393490725,1762715445197,-1805.19087562,0.00027664,3]
[393490726,1762715445210,-1251.76,0.00027671,30]
[393490727,1762715445220,-978.64743406,0.00027674,2]
[393490728,1762715445229,-824.66173703,0.00027674,2]
[393490729,1762715445239,-166.66,0.00028126,2]
[393490730,1762715445249,-250.0,0.0002823,2]
[393490731,1762715445258,-150.0,0.00028371,2]
[393490732,1762715445270,-166.66,0.00029055,2]
[393490733,1762715445282,-1000.0,0.00029081,2]
[393490734,1762715445291,-978.64743406,0.0002911,2]
[393490735,1762715445301,-824.66173703,0.0002911,2]
[393490736,1762715445310,-1805.19087562,0.00029236,3]
[393490737,1762715445320,-5917.5978945,0.00029246,2]
[393490738,1762715445330,-1061.9293954,0.00029262,2]
[393490739,1762715445342,-500.0,0.0002946,5]
[393490740,1762715445352,-500.0,0.0002946,5]
[393490741,1762715445362,-500.0,0.0002946,5]
[393490742,1762715445372,-500.0,0.0002946,5]
[393490743,1762715445383,-500.0,0.0002946,5]
[393490744,1762715445393,-500.0,0.0002946,2]
[393490745,1762715445409,-166.66,0.00029983,2]
[393490746,1762715445419,-199.0,0.0003041,7]
[393490747,1762715445429,-978.64743406,0.00030546,2]
[393490748,1762715445438,-824.66173703,0.00030546,2]
[393490749,1762715445448,-166.66,0.00030912,2]
[393490750,1762715445457,-1805.19087562,0.0003136,3]
[393490751,1762715445467,-150.0,0.00031371,2]
[393490752,1762715445477,-166.66,0.0003184,2]
[393490753,1762715445487,-978.64743406,0.00031982,2]
[393490754,1762715445503,-824.66173703,0.00031982,2]
[393490755,1762715445512,-1805.19087562,0.00032145,3]
[393490756,1762715445522,-5917.5978945,0.00032155,2]
[393490757,1762715445532,-1061.9293954,0.00032186,2]
[393490758,1762715445541,-1000.0,0.00032716,2]
[393490759,1762715445551,-166.66,0.00032769,2]
[393490760,1762715445560,-1805.19087562,0.00032866,3]
[393490761,1762715445571,-500.0,0.00032876,2]
[393490762,1762715445580,-500.0,0.00032876,2]
[393490763,1762715445590,-500.0,0.00032876,2]
[393490764,1762715445599,-500.0,0.00032876,2]
[393490765,1762715445613,-500.0,0.00032876,2]
[393490766,1762715445622,-500.0,0.00032876,2]
[393490767,1762715445632,-500.0,0.00032876,2]
[393490768,1762715445641,-500.0,0.00032876,2]
[393490769,1762715445651,-500.0,0.00032876,2]
[393490770,1762715445661,-500.0,0.00032876,2]
[393490771,1762715445671,-247.33995959,0.00032876,2]
[393490772,1762715445681,-619.15,0.00033165,2]
[393490773,1762715445691,-2000.0,0.000332,2]
[393490774,1762715445702,-978.64743406,0.00033418,2]
[393490775,1762715445712,-824.66173703,0.00033418,2]
[393490776,1762715445722,-1297.0,0.00034,2]
[393490778,1762715445731,-500.0,0.00034256,7]
[393490779,1762715445741,-500.0,0.00034256,7]
[393490780,1762715445751,-500.0,0.00034256,7]
[393490781,1762715445765,-500.0,0.00034256,7]
[393490782,1762715445774,-500.0,0.00034256,7]
[393490783,1762715445785,-500.0,0.00034256,7]
[393490784,1762715445794,-500.0,0.00034256,7]
[393490785,1762715445805,-500.0,0.00034256,7]
[393490786,1762715445817,-500.0,0.00034256,7]
[393490787,1762715445827,-500.0,0.00034256,7]
[393490788,1762715445838,-500.0,0.00034256,7]
[393490789,1762715445847,-500.0,0.00034256,7]
[393490790,1762715445856,-500.0,0.00034256,7]
[393490791,1762715445865,-500.0,0.00034256,7]
[393490792,1762715445875,-500.0,0.00034256,7]
[393490793,1762715445884,-500.0,0.00034256,7]
[393490794,1762715445893,-500.0,0.00034256,7]
[393490795,1762715445902,-500.0,0.00034256,7]
[393490796,1762715445912,-500.0,0.00034256,7]
[393490797,1762715445922,-500.0,0.00034256,7]
[393490798,1762715445932,-500.0,0.00034256,7]
[393490799,1762715445942,-841.87373691,0.00034256,7]
[393490800,1762715445952,-150.0,0.00034371,2]
[393490801,1762715445961,-1000.0,0.00034499,2]
[393490802,1762715445971,-1459.0,0.000348,7]
[393490803,1762715445980,-978.64743406,0.00034854,2]
[393490804,1762715445990,-824.66173703,0.00034854,2]
[393490805,1762715445999,-1251.76,0.00034867,30]
[393490806,1762715446009,-5917.5978945,0.00035063,2]
[393490807,1762715446018,-1061.9293954,0.0003511,2]
[393490808,1762715446028,-887.53,0.00035461,5]
[393490809,1762715446043,-648.0,0.00036,2]
[393490810,1762715446052,-347.5,0.00036005,2]
[393490811,1762715446062,-978.64743406,0.0003629,2]
[393490812,1762715446072,-824.66173703,0.0003629,2]
[393490813,1762715446081,-150.97,0.0003634,30]
[393490814,1762715446091,-1000.0,0.00036352,2]
[393490815,1762715446101,-201.97383663,0.000365,120]
[393490816,1762715446111,-2000.0,0.000368,2]
[393490817,1762715446121,-211.0,0.0003689,30]
[393490818,1762715446130,-152.0,0.00036891,3]
[393490819,1762715446140,-2500.0,0.00037173,10]
[393490820,1762715446149,-150.0,0.00037371,2]
[393490821,1762715446159,-622.99,0.00037384,120]
[393490822,1762715446169,-858.03,0.00037514,5]
[393490823,1762715446179,-864.43,0.00037719,5]
[393490824,1762715446188,-978.64743406,0.00037726,2]
[393490825,1762715446198,-824.66173703,0.00037726,2]
[393490826,1762715446217,-415.98,0.00037908,2]
[393490827,1762715446228,-415.8,0.00037908,2]
[393490828,1762715446237,-176.94,0.00037908,2]
[393490829,1762715446247,-150.97,0.00038253,30]
[393490830,1762715446264,-500.0,0.00038356,2]
[393490831,1762715446275,-150.0,0.00038727,2]
[393490832,1762715446284,-972.22222,0.0003887,2]
[393490833,1762715446293,-211.0,0.0003891,30]
[393490834,1762715446303,-650.0,0.00039,2]
[393490835,1762715446313,-714.0,0.00039031,30]
[393490836,1762715446322,-313.04302055,0.0003915,2]
[393490837,1762715446332,-978.64743406,0.00039162,2]
[393490838,1762715446341,-824.66173703,0.00039162,2]
[393490839,1762715446350,-1079.93077864,0.00039162,2]
[393490840,1762715446360,-182.00917669,0.000392,120]
[393490841,1762715446369,-1260.58747062,0.000392,120]
[393490842,1762715446378,-860.49,0.00039234,5]
[393490843,1762715446389,-150.00000001,0.00039238,2]
[393490844,1762715446399,-1081.0,0.00039249,5]
[393490845,1762715446408,-150.0,0.00039249,20]
[393490846,1762715446419,-151.0,0.0003925,120]
[393490847,1762715446429,-151.0,0.0003925,120]
[393490849,1762715446438,-150.0,0.00039252,7]
[393490851,1762715446448,-150.0,0.00039252,7]
[393490853,1762715446458,-150.0,0.00039252,7]
[393490855,1762715446467,-150.0,0.00039252,7]
[393490856,1762715446476,-150.0,0.00039252,7]
[393490857,1762715446486,-150.0,0.00039252,7]
[393490858,1762715446498,-150.0,0.00039252,7]
[393490859,1762715446508,-150.0,0.00039252,7]
[393490860,1762715446516,-189.57457883,0.00039252,7]
[393490861,1762715446526,-150.0,0.00039252,7]
[393490862,1762715446537,-150.0,0.00039252,7]
[393490863,1762715446545,-150.0,0.00039252,7]
[393490864,1762715446554,-1999.0,0.00039261,120]
[393490865,1762715446564,-5209.97798833,0.00039262,29]
[393490866,1762715446574,-36215.13634806,0.00039262,7]
[393490867,1762715446589,-171310.00000006,0.00039262,7]
[393490868,1762715446600,-11250.0,0.00039262,7]
[393490869,1762715446620,-870.20119571,0.00039262,7]
[393490870,1762715446631,-5000.0,0.00039262,7]
[393490871,1762715446643,-205064.80338569,0.00039262,7]
[393490872,1762715446654,-74304.56740284,0.00039262,7]
[393490873,1762715446665,-1475.66373794,0.00039262,7]
[393490874,1762715446678,-2377.8873204,0.00039262,7]
[393490875,1762715446689,-6852.6,0.00039262,7]
[393490876,1762715446700,-4077.535995,0.00039262,7]
[393490877,1762715446712,-3895.80521458,0.00039262,7]
[393490878,1762715446723,-700472.78135,0.00039262,7]
[393490879,1762715446734,-9052.08353063,0.00039262,7]
[393490880,1762715446745,-1040.0,0.00039262,7]
[393490881,1762715451834,500.0,0.00039262,120]
[393490882,1762715452068,150.32579201,0.00039262,120]
[393490883,1762715455644,400.0,0.00039262,120]
[393490884,1762715458879,500.0,0.00039262,120]
[393490885,1762715459123,500.0,0.00039262,120]
[393490886,1762715459379,569.3904176,0.00039262,120]
[393490888,1762715493494,400.0,0.00039262,120]
[393490890,1762715578970,510.63272554,0.00039262,120]
[393490892,1762715659315,400.0,0.00039262,120]
[393490893,1762715673027,400.0,0.00039262,120]
[393490898,1762715806663,500.0,0.00039262,120]
[393490899,1762715806889,500.0,0.00039262,120]
[393490900,1762715807140,500.0,0.00039262,120]
[393490901,1762715807364,500.0,0.00039262,120]
[393490902,1762715807590,500.0,0.00039262,120]
[393490903,1762715807836,500.0,0.00039262,120]
[393490904,1762715808064,500.0,0.00039262,120]
[393490905,1762715808306,500.0,0.00039262,120]